bitfinex/quotes_BTCUSD_20241103
["timestamp","ask_amount","ask_price","bid_price","bid_amount"]
[1730602394271,0.67164529,68018.0,68017.0,0.01482]
[1730602395205,0.67164529,68018.0,68017.0,0.161842]
[1730602395488,0.4020137,68018.0,68017.0,0.40763904]
[1730602395677,0.38069696,68018.0,68017.0,0.41263904]
[1730602395917,0.367374,68018.0,68017.0,0.43163904]
[1730602396641,0.367374,68018.0,68017.0,0.41763904]
[1730602396885,0.367374,68018.0,68017.0,0.40363904]
[1730602397090,0.367374,68018.0,68017.0,0.42663904]
[1730602397345,0.367374,68018.0,68017.0,0.42163904]
[1730602397580,0.367374,68018.0,68017.0,0.39363904]
[1730602397790,0.367374,68018.0,68017.0,0.42663904]
[1730602398005,0.367374,68018.0,68017.0,0.41263904]
[1730602398427,0.367374,68018.0,68017.0,0.42163904]
[1730602399145,0.367374,68018.0,68017.0,0.161842]
[1730602399381,0.38069979,68018.0,68017.0,0.161842]
[1730602399609,0.38069979,68018.0,68017.0,0.32663904]
[1730602399846,0.367374,68018.0,68017.0,0.31263904]
[1730602400077,0.367374,68018.0,68017.0,0.29863904]
[1730602400289,0.367374,68018.0,68017.0,0.32663904]
[1730602400529,0.367374,68018.0,68017.0,0.41263904]
[1730602400763,0.38070703,68018.0,68017.0,0.40763904]
[1730602401711,0.38070703,68018.0,68017.0,0.41263904]
[1730602401941,0.38070703,68018.0,68017.0,0.41396295]
[1730602401942,0.367374,68018.0,68017.0,0.41396295]
[1730602402433,0.220354,68018.0,68017.0,0.42796295]
[1730602402654,0.22058661,68034.0,68033.0,0.256987]
[1730602402840,0.001636,68038.0,68036.0,0.01]
[1730602403145,0.22058661,68057.0,68056.0,0.246937]
[1730602403363,0.22058661,68057.0,68056.0,0.40567242]
[1730602403594,0.22058661,68064.0,68063.0,0.151922]
[1730602403815,0.22058661,68064.0,68063.0,0.39771904]
[1730602404046,0.00164,68070.0,68069.0,0.146909]
[1730602404274,0.00164,68070.0,68069.0,0.40064399]
[1730602404499,0.00164,68070.0,68069.0,0.40270604]
[1730602406098,0.00164,68070.0,68069.0,0.41670604]
[1730602406579,0.00164,68070.0,68069.0,0.41170604]
[1730602406809,0.00164,68070.0,68069.0,0.43070604]
[1730602407033,0.00164,68070.0,68069.0,0.44470604]
[1730602407932,4e-07,68074.0,68073.0,0.156901]
[1730602408160,4e-07,68074.0,68073.0,0.71696932]
[1730602408394,4e-07,68077.0,68076.0,0.256894]
[1730602408617,0.0090111,68108.0,68090.0,0.01]
[1730602408867,0.001664,68107.0,68094.0,0.151855]
[1730602409092,0.001664,68107.0,68090.0,0.24579704]
[1730602409093,0.19122371,68113.0,68112.0,0.01]
[1730602409279,0.22058661,68120.0,68119.0,0.156801]
[1730602409533,0.001666,68127.0,68126.0,0.256786]
[1730602409981,0.001666,68127.0,68126.0,0.44798286]
[1730602410225,0.001666,68127.0,68126.0,0.44504797]
[1730602410663,0.001666,68127.0,68126.0,0.45904797]
[1730602411102,0.001666,68127.0,68126.0,0.44504797]
[1730602411324,0.001666,68127.0,68126.0,0.41658304]
[1730602411561,0.001666,68127.0,68126.0,0.40258304]
[1730602412215,0.001666,68127.0,68126.0,0.39258304]
[1730602412431,0.001666,68127.0,68126.0,0.14579704]
[1730602412653,0.003666,68127.0,68126.0,0.014]
[1730602413130,0.15045,68127.0,68126.0,0.028]
[1730602413368,0.23185,68127.0,68126.0,0.014]
[1730602413602,0.24502527,68127.0,68126.0,0.014]
[1730602413838,0.24502527,68127.0,68113.0,0.80784361]
[1730602413839,0.146802,68119.0,68113.0,0.22058661]
[1730602414064,0.293595,68122.0,68113.0,0.22058661]
[1730602414065,0.148807,68117.0,68114.0,0.14579704]
[1730602414347,0.148807,68117.0,68100.0,0.293683]
[1730602414348,0.002,68117.0,68100.0,0.293683]
[1730602414576,0.002,68104.0,68099.0,0.22058661]
[1730602414807,0.0814,68103.0,68099.0,0.22058661]
[1730602415019,0.0814,68103.0,68092.0,0.146858]
[1730602415277,0.146852,68096.0,68093.0,0.14579704]
[1730602415534,0.293685,68100.0,68092.0,0.14579704]
[1730602415754,0.002,68089.0,68084.0,0.146876]
[1730602415996,0.1938,68091.0,68087.0,0.22058661]
[1730602416213,0.1938,68091.0,68085.0,0.14579704]
[1730602416214,0.15020574,68088.0,68081.0,0.293763]
[1730602416424,0.001,68085.0,68083.0,0.146878]
[1730602416673,0.002,68085.0,68081.0,0.146882]
[1730602416898,0.340662,68091.0,68084.0,0.146877]
[1730602417113,0.340662,68091.0,68079.0,0.005]
[1730602417114,0.00333774,68084.0,68079.0,0.005]
[1730602417345,0.1938,68091.0,68079.0,0.005]
[1730602417346,0.146869,68088.0,68081.0,0.146883]
[1730602417559,0.1938,68091.0,68084.0,0.014]
[1730602417768,0.00333774,68087.0,68086.0,0.14687]
[1730602417995,0.1938,68091.0,68086.0,0.14579704]
[1730602418244,0.002,68085.0,68079.0,0.32058661]
[1730602418548,0.1938,68091.0,68089.0,0.146865]
[1730602418717,0.002,68101.0,68091.0,0.1]
[1730602418921,0.22058661,68102.0,68093.0,0.146857]
[1730602419161,0.0814,68103.0,68102.0,0.146838]
[1730602419388,0.0814,68103.0,68091.0,0.1]
[1730602419389,0.0814,68103.0,68095.0,0.293707]
[1730602419622,0.0814,68103.0,68091.0,0.1]
[1730602419623,0.0814,68103.0,68102.0,0.14579704]
[1730602419860,0.0814,68103.0,68102.0,0.29263504]
[1730602420328,0.0814,68103.0,68099.0,0.146842]
[1730602420622,0.0814,68103.0,68102.0,0.146838]
[1730602420878,0.0814,68103.0,68100.0,0.43947804]
[1730602421122,0.0764,68116.0,68102.0,0.14579704]
[1730602421378,0.22058661,68112.0,68103.0,0.14579704]
[1730602421617,0.146821,68110.0,68105.0,0.14683]
[1730602421871,0.002,68113.0,68106.0,0.14579704]
[1730602422105,0.0784,68116.0,68111.0,0.146818]
[1730602422327,0.0764,68116.0,68115.0,0.14681]
[1730602422550,0.0764,68116.0,68111.0,0.14579704]
[1730602422761,0.0764,68116.0,68105.0,0.293664]
[1730602422762,0.002,68109.0,68105.0,0.293664]
[1730602422995,0.002,68110.0,68106.0,0.14579704]
[1730602423267,0.293621,68115.0,68105.0,0.22258661]
[1730602423268,0.002,68113.0,68105.0,0.001]
[1730602423507,0.295666,68105.0,68098.0,0.146845]
[1730602423713,0.293668,68104.0,68102.0,0.22058661]
[1730602423917,0.002,68103.0,68099.0,0.14579704]
[1730602424137,0.295652,68108.0,68100.0,0.22058661]
[1730602424352,0.002,68110.0,68109.0,0.146823]
[1730602424819,0.002,68110.0,68109.0,0.29262004]
[1730602425494,0.0764,68116.0,68115.0,0.14681]
[1730602425836,0.0764,68116.0,68115.0,0.29260704]
[1730602426000,0.0764,68116.0,68115.0,0.14579704]
[1730602426242,0.0764,68116.0,68104.0,0.1]
[1730602426492,0.0764,68116.0,68115.0,0.14681]
[1730602426719,0.0764,68116.0,68115.0,0.29260704]
[1730602426937,0.1831,68120.0,68119.0,0.146801]
[1730602427399,0.1831,68120.0,68119.0,0.29259804]
[1730602427871,0.078066,68127.0,68126.0,0.146786]
[1730602428447,0.09129797,68127.0,68125.0,0.146788]
[1730602428689,0.00556718,68127.0,68126.0,0.29551882]
[1730602428913,0.00556718,68127.0,68126.0,0.39758304]
[1730602429142,0.001666,68127.0,68126.0,0.39758304]
[1730602429357,0.002666,68127.0,68126.0,0.39858304]
[1730602429602,0.002666,68127.0,68126.0,0.39758304]
[1730602429603,0.001666,68127.0,68126.0,0.39758304]
[1730602430086,0.001666,68127.0,68126.0,0.41158304]
[1730602430292,0.001666,68127.0,68126.0,0.43058304]
[1730602431476,0.001666,68127.0,68126.0,0.46532606]
[1730602431710,0.001666,68127.0,68126.0,0.43058304]
[1730602432423,0.001666,68127.0,68126.0,0.41658304]
[1730602433115,0.001666,68127.0,68126.0,0.43058304]
[1730602433327,0.001666,68127.0,68126.0,0.45632606]
[1730602433552,0.001666,68127.0,68126.0,0.47032606]
[1730602434049,0.001666,68127.0,68126.0,0.45632606]
[1730602434262,0.001666,68127.0,68126.0,0.41658304]
[1730602434957,0.001666,68127.0,68126.0,0.40258304]
[1730602435372,0.001666,68127.0,68126.0,0.43058304]
[1730602435585,0.001666,68127.0,68126.0,0.41658304]
[1730602435799,0.001666,68127.0,68126.0,0.40258304]
[1730602436066,0.001666,68127.0,68126.0,0.41658304]
[1730602436273,0.001666,68127.0,68126.0,0.40258304]
[1730602436507,0.001666,68127.0,68126.0,0.41658304]
[1730602436743,0.001666,68127.0,68126.0,0.43058304]
[1730602436950,0.001666,68127.0,68126.0,0.41658304]
[1730602437357,0.001666,68127.0,68126.0,0.43058304]
[1730602438048,0.001666,68127.0,68126.0,0.41658304]
[1730602438723,0.001666,68127.0,68126.0,0.40258304]
[1730602438952,0.001666,68127.0,68126.0,0.41658304]
[1730602439169,0.001666,68127.0,68126.0,0.43058304]
[1730602441734,0.001666,68127.0,68126.0,0.42558304]
[1730602442200,0.001666,68127.0,68126.0,0.43058304]
[1730602442502,0.001666,68127.0,68126.0,0.42558304]
[1730602442686,0.001666,68127.0,68126.0,0.42058304]
[1730602442931,0.001666,68127.0,68126.0,0.43058304]
[1730602443126,1e-06,68132.0,68131.0,0.256776]
[1730602443330,1e-06,68132.0,68131.0,0.40257304]
[1730602443782,0.001666,68134.0,68133.0,0.156771]
[1730602444042,0.001666,68134.0,68133.0,0.40256804]
[1730602444723,0.001666,68134.0,68133.0,0.39756804]
[1730602444945,0.001666,68134.0,68133.0,0.40256804]
[1730602445399,0.001666,68134.0,68133.0,0.41656804]
[1730602445614,0.001666,68134.0,68133.0,0.44598804]
[1730602446689,0.001666,68134.0,68133.0,0.45998804]
[1730602447670,1e-06,68134.0,68133.0,0.44598804]
[1730602447885,1e-06,68139.0,68138.0,0.28618]
[1730602448125,0.001666,68146.0,68142.0,0.286172]
[1730602448126,1e-07,68143.0,68142.0,0.286172]
[1730602448366,0.001666,68146.0,68145.0,0.286165]
[1730602448367,1e-06,68146.0,68145.0,0.286165]
[1730602448601,1e-06,68146.0,68145.0,0.43196204]
[1730602448865,1e-06,68150.0,68149.0,0.286157]
[1730602449110,1e-06,68150.0,68149.0,0.74355697]
[1730602449339,0.001638,68169.0,68168.0,0.286116]
[1730602449668,0.22222461,68169.0,68168.0,0.43191304]
[1730602450001,0.001638,68169.0,68168.0,0.43191304]
[1730602450696,0.001638,68169.0,68168.0,0.40249304]
[1730602451620,0.001638,68169.0,68168.0,0.41649304]
[1730602451836,0.001638,68169.0,68168.0,0.43049304]
[1730602452053,0.001638,68169.0,68168.0,0.41649304]
[1730602452272,0.001638,68169.0,68168.0,0.40249304]
[1730602452488,0.001638,68169.0,68168.0,0.41649304]
[1730602453596,0.001638,68169.0,68168.0,0.43049304]
[1730602454323,0.0090111,68177.0,68176.0,0.01]
[1730602454553,0.0090111,68177.0,68176.0,0.40247604]
[1730602454786,0.0090111,68177.0,68176.0,0.71407897]
[1730602456148,0.0090111,68177.0,68176.0,0.72807897]
[1730602457093,0.0090111,68177.0,68176.0,1.42807897]
[1730602457551,1e-08,68183.0,68182.0,0.156666]
[1730602457790,1e-08,68183.0,68182.0,0.40539529]
[1730602458000,1e-08,68183.0,68182.0,0.40246304]
[1730602458854,1e-08,68183.0,68182.0,0.41646304]
[1730602459317,1e-08,68183.0,68182.0,0.40246304]
[1730602459526,1e-08,68183.0,68182.0,0.41646304]
[1730602460639,1e-08,68183.0,68182.0,0.44588304]
[1730602461066,1e-08,68183.0,68182.0,0.45988304]
[1730602461274,1e-08,68183.0,68182.0,0.44088304]
[1730602461503,0.08050001,68183.0,68182.0,0.32188304]
[1730602461744,0.41801401,68183.0,68182.0,0.028]
[1730602461956,0.1828,68181.0,68164.0,0.22058661]
[1730602462207,0.0805,68171.0,68164.0,0.22058661]
[1730602462425,0.005,68180.0,68157.0,0.22058661]
[1730602462426,0.146717,68158.0,68157.0,0.22058661]
[1730602462657,0.229217,68158.0,68157.0,0.22058661]
[1730602462880,0.148732,68151.0,68137.0,0.51410961]
[1730602463138,0.148735,68150.0,68144.0,0.22058661]
[1730602463573,0.14676,68138.0,68123.0,0.005]
[1730602463776,0.440272,68140.0,68139.0,0.22058661]
[1730602463975,0.146765,68136.0,68131.0,0.02942]
[1730602464222,0.146763,68137.0,68132.0,0.14579704]
[1730602464433,0.002,68138.0,68132.0,0.14579704]
[1730602464652,0.293516,68140.0,68132.0,0.29257004]
[1730602464889,0.001,68138.0,68137.0,0.22058661]
[1730602465101,0.001,68140.0,68137.0,0.14579704]
[1730602465307,0.001,68140.0,68139.0,0.146758]
[1730602465544,0.002,68142.0,68141.0,0.146754]
[1730602465752,0.0805,68144.0,68138.0,0.14579704]
[1730602466165,0.0805,68144.0,68143.0,0.14675]
[1730602466374,0.0805,68144.0,68143.0,0.29254704]
[1730602467036,0.2935,68143.0,68133.0,0.14677]
[1730602467267,0.0805,68144.0,68141.0,0.22058661]
[1730602467531,0.146755,68141.0,68139.0,0.014]
[1730602467690,0.147756,68140.0,68139.0,0.014]
[1730602468116,0.146756,68140.0,68135.0,0.146765]
[1730602468335,0.001,68142.0,68141.0,0.014]
[1730602468539,0.012,68143.0,68138.0,0.14676]
[1730602468758,0.012,68143.0,68141.0,0.22058661]
[1730602468975,0.0805,68144.0,68143.0,0.14675]
[1730602469257,0.0805,68144.0,68143.0,0.29254704]
[1730602469895,0.0805,68144.0,68143.0,0.39254704]
[1730602470621,0.0805,68144.0,68140.0,0.146755]
[1730602470841,0.0805,68144.0,68141.0,0.22058661]
[1730602470842,0.146752,68142.0,68141.0,0.22058661]
[1730602471089,0.293504,68142.0,68139.0,0.001]
[1730602471318,0.228248,68144.0,68143.0,0.014]
[1730602471523,0.146752,68143.0,68138.0,0.14676]
[1730602471743,0.01329909,68142.0,68139.0,0.14579704]
[1730602471984,0.0825,68144.0,68143.0,0.14675]
[1730602472211,0.0815,68144.0,68143.0,0.29254704]
[1730602472425,0.0815,68144.0,68143.0,0.39254704]
[1730602472426,0.0805,68144.0,68143.0,0.39254704]
[1730602472633,0.0805,68144.0,68143.0,0.39354704]
[1730602472634,0.0935,68144.0,68143.0,0.39354704]
[1730602473117,0.0805,68144.0,68143.0,0.39254704]
[1730602474375,0.001,68144.0,68143.0,0.25979704]
[1730602474513,0.001,68144.0,68143.0,0.4144814]
[1730602474738,0.002,68144.0,68143.0,0.43054704]
[1730602475149,0.001,68144.0,68143.0,0.41654704]
[1730602475372,0.1828,68158.0,68157.0,0.14672]
[1730602475624,0.1828,68158.0,68157.0,0.29251704]
[1730602477199,0.0805,68167.0,68157.0,0.29251704]
[1730602477423,0.0805,68167.0,68156.0,0.1]
[1730602477424,0.0805,68167.0,68166.0,0.1467]
[1730602477640,0.0805,68167.0,68166.0,0.29249704]
[1730602478324,0.1828,68170.0,68169.0,0.146694]
[1730602478528,0.1828,68170.0,68169.0,0.29249104]
[1730602478762,0.1828,68170.0,68169.0,0.146694]
[1730602478976,0.1828,68170.0,68166.0,0.001]
[1730602479187,0.1828,68170.0,68166.0,0.147699]
[1730602479586,0.1828,68170.0,68166.0,0.002]
[1730602479587,0.012,68167.0,68166.0,0.002]
[1730602479589,0.014,68167.0,68166.0,0.002]
[1730602480253,0.019,68167.0,68166.0,0.002]
[1730602480458,0.1848,68170.0,68165.0,0.293403]
[1730602480706,0.1848,68170.0,68169.0,0.146694]
[1730602480918,0.1848,68170.0,68169.0,0.015]
[1730602480919,0.1858,68170.0,68169.0,0.015]
[1730602481211,0.1848,68170.0,68169.0,0.014]
[1730602481378,0.1848,68170.0,68167.0,0.146697]
[1730602481379,0.146695,68169.0,68165.0,0.146701]
[1730602481602,0.001,68167.0,68166.0,0.001]
[1730602481813,0.003,68167.0,68166.0,0.1467]
[1730602482104,0.003,68167.0,68160.0,0.293423]
[1730602482105,0.001,68167.0,68160.0,0.293423]
[1730602482323,0.478185,68170.0,68147.0,0.22058661]
[1730602482324,0.002,68160.0,68147.0,0.22058661]
[1730602482548,0.002,68161.0,68160.0,0.146713]
[1730602483198,0.002,68161.0,68148.0,0.14579704]
[1730602483407,0.002,68161.0,68154.0,0.51403761]
[1730602483615,0.148713,68161.0,68155.0,0.29252004]
[1730602483845,0.002,68159.0,68155.0,0.14579704]
[1730602484078,0.002,68159.0,68158.0,0.146717]
[1730602484647,0.002,68159.0,68155.0,0.14579704]
[1730602484852,0.002,68159.0,68154.0,0.014]
[1730602485058,0.002,68165.0,68155.0,0.14579704]
[1730602485291,0.0825,68166.0,68163.0,0.146705]
[1730602485501,0.0805,68166.0,68165.0,0.146702]
[1730602485725,0.002,68164.0,68158.0,0.014]
[1730602485976,0.002,68159.0,68158.0,0.160717]
[1730602486190,0.0825,68166.0,68159.0,0.22058661]
[1730602486412,0.0805,68166.0,68165.0,0.146702]
[1730602486622,0.002,68162.0,68161.0,0.293422]
[1730602486848,0.002,68162.0,68161.0,0.58593004]
[1730602487523,0.002,68162.0,68120.0,0.04364641]
[1730602487524,0.002,68150.0,68149.0,0.146737]
[1730602487748,0.005,68164.0,68149.0,0.14579704]
[1730602487749,0.002,68163.0,68149.0,0.14579704]
[1730602487990,0.002,68163.0,68141.0,0.293504]
[1730602487991,0.002,68165.0,68164.0,0.146705]
[1730602488502,0.002,68165.0,68164.0,0.29250204]
[1730602488723,0.0805,68166.0,68165.0,0.146702]
[1730602488928,0.1828,68170.0,68169.0,0.146694]
[1730602489131,0.1878,68170.0,68168.0,0.146695]
[1730602489363,0.1848,68170.0,68168.0,0.14579704]
[1730602489573,0.1828,68170.0,68169.0,0.146694]
[1730602489788,0.1848,68170.0,68169.0,0.146694]
[1730602489996,0.1828,68170.0,68169.0,0.146694]
[1730602491120,0.002,68170.0,68169.0,0.29349104]
[1730602491353,0.002,68170.0,68169.0,0.29449104]
[1730602491354,0.004,68170.0,68169.0,0.29449104]
[1730602491565,0.002,68170.0,68169.0,0.29349104]
[1730602491770,0.01337478,68174.0,68173.0,0.146685]
[1730602492643,0.01537478,68174.0,68173.0,0.146685]
[1730602492891,0.01337478,68174.0,68173.0,0.51306865]
[1730602493107,0.1847,68181.0,68179.0,0.146672]
[1730602493108,0.01337478,68180.0,68179.0,0.146672]
[1730602493352,0.01339251,68180.0,68179.0,0.146672]
[1730602494059,0.002,68177.0,68175.0,0.293362]
[1730602494287,0.002,68177.0,68176.0,0.14579704]
[1730602495243,0.01538985,68177.0,68176.0,0.14579704]
[1730602495702,0.002,68173.0,68172.0,0.1]
[1730602495948,0.002,68173.0,68172.0,0.24579704]
[1730602497034,0.002,68169.0,68148.0,0.005]
[1730602497293,0.01338985,68168.0,68161.0,0.22058661]
[1730602497503,0.01338985,68168.0,68154.0,0.43925004]
[1730602497504,0.1467,68166.0,68162.0,0.14579704]
[1730602497715,0.01338985,68167.0,68162.0,0.14579704]
[1730602497716,0.01338985,68165.0,68162.0,0.29250504]
[1730602497940,0.002,68163.0,68162.0,0.29250504]
[1730602498160,0.01538985,68163.0,68162.0,0.29250504]
[1730602498367,0.01538985,68163.0,68154.0,0.293453]
[1730602498368,0.002,68158.0,68154.0,0.293453]
[1730602498670,0.002,68158.0,68157.0,0.14672]
[1730602498899,0.01339899,68158.0,68157.0,0.29251704]
[1730602499615,0.002,68154.0,68153.0,0.014]
[1730602499841,0.16011899,68157.0,68153.0,0.15979704]
[1730602500048,0.16012099,68156.0,68154.0,0.14579704]
[1730602500289,0.002,68154.0,68153.0,0.014]
[1730602500513,0.002,68152.0,68148.0,0.146737]
[1730602500722,0.01340267,68151.0,68149.0,0.14579704]
[1730602500987,0.02142464,68158.0,68149.0,0.14579704]
[1730602500988,0.002,68153.0,68150.0,0.29347]
[1730602501267,0.01340302,68152.0,68150.0,0.14579704]
[1730602501475,0.01340966,68151.0,68150.0,0.14579704]
[1730602501715,0.01540966,68151.0,68150.0,0.14579704]
[1730602501949,0.01340966,68151.0,68150.0,0.29253204]
[1730602503395,0.01340966,68151.0,68150.0,0.30653204]
[1730602503627,0.01340966,68151.0,68150.0,0.31953204]
[1730602503855,0.17615513,68151.0,68150.0,0.013]
[1730602504077,0.03142313,68151.0,68150.0,0.013]
[1730602504315,0.01340966,68151.0,68150.0,0.173735]
[1730602504971,0.02146447,68154.0,68151.0,0.146731]
[1730602505223,0.03487982,68153.0,68151.0,0.146731]
[1730602505461,0.03487982,68153.0,68150.0,0.027]
[1730602505462,0.002,68163.0,68160.0,0.146713]
[1730602505683,0.1872,68170.0,68152.0,0.14873141]
[1730602505684,0.002,68165.0,68164.0,0.146705]
[1730602505930,0.01341588,68165.0,68164.0,0.29250204]
[1730602506382,0.01341588,68169.0,68168.0,0.146696]
[1730602506628,0.002,68175.0,68172.0,0.146686]
[1730602506883,0.002,68176.0,68175.0,0.146681]
[1730602507114,0.002,68176.0,68172.0,0.14579704]
[1730602507115,0.000816,68177.0,68176.0,0.146679]
[1730602507411,0.000816,68177.0,68176.0,0.29247604]
[1730602507619,0.01423389,68177.0,68176.0,0.29247604]
[1730602508072,0.01423389,68177.0,68176.0,0.39247604]
[1730602508073,0.000816,68177.0,68176.0,0.39247604]
[1730602508330,0.000816,68177.0,68176.0,0.40247604]
[1730602508768,1e-08,68183.0,68182.0,0.256666]
[1730602508999,1e-08,68183.0,68182.0,0.60026304]
[1730602509235,0.22224861,68197.0,68195.0,0.005]
[1730602509446,0.22224861,68197.0,68195.0,0.40243504]
[1730602509447,0.22225061,68196.0,68195.0,0.40243504]
[1730602509679,0.001664,68196.0,68195.0,0.60717173]
[1730602510126,0.001664,68196.0,68195.0,0.39743504]
[1730602510407,0.001664,68196.0,68195.0,0.40243504]
[1730602510622,0.001664,68196.0,68195.0,0.40643504]
[1730602510830,0.001664,68196.0,68195.0,0.41943504]
[1730602511042,0.001664,68196.0,68195.0,0.39243504]
[1730602511484,0.001664,68196.0,68195.0,0.41943504]
[1730602511724,0.001664,68196.0,68195.0,0.30643504]
[1730602512152,0.001664,68196.0,68195.0,0.31943504]
[1730602512798,0.001664,68196.0,68195.0,0.30543504]
[1730602513012,0.001664,68196.0,68195.0,0.31443504]
[1730602513226,0.001664,68196.0,68195.0,0.30143504]
[1730602513682,0.001664,68196.0,68195.0,0.30043504]
[1730602513939,0.001664,68196.0,68195.0,0.30143504]
[1730602514229,0.001664,68196.0,68195.0,0.027]
[1730602514348,0.1503,68196.0,68195.0,0.027]
[1730602514573,0.001664,68196.0,68195.0,0.173638]
[1730602515020,0.001664,68196.0,68195.0,0.30643504]
[1730602515254,0.001664,68196.0,68195.0,0.31943504]
[1730602515712,0.001664,68196.0,68195.0,0.40543504]
[1730602516145,0.001664,68196.0,68195.0,0.41943504]
[1730602516577,0.001664,68196.0,68192.0,0.1]
[1730602516793,0.002,68194.0,68193.0,0.14579704]
[1730602517041,0.001664,68196.0,68188.0,0.22058661]
[1730602517042,0.002,68190.0,68188.0,0.22058661]
[1730602517249,0.002,68193.0,68189.0,0.14579704]
[1730602517474,0.002,68193.0,68192.0,0.146644]
[1730602517671,0.001664,68196.0,68195.0,0.146638]
[1730602517888,0.001664,68196.0,68195.0,0.29243504]
[1730602518359,0.001664,68196.0,68195.0,0.39243504]
[1730602518590,0.001664,68196.0,68195.0,0.39743504]
[1730602518799,0.001664,68196.0,68195.0,0.39243504]
[1730602520090,0.001664,68196.0,68195.0,0.40643504]
[1730602520595,0.001664,68196.0,68195.0,0.39243504]
[1730602520837,0.001664,68196.0,68195.0,0.41943504]
[1730602521050,0.001664,68196.0,68195.0,0.40643504]
[1730602521468,0.001664,68196.0,68195.0,0.41943504]
[1730602521691,0.001664,68196.0,68195.0,0.40643504]
[1730602521935,0.001664,68196.0,68195.0,0.40276478]
[1730602522157,0.001664,68196.0,68195.0,0.40176478]
[1730602522619,0.001664,68196.0,68195.0,0.41576478]
[1730602523163,0.001664,68196.0,68195.0,0.30176478]
[1730602523351,0.001664,68196.0,68195.0,0.027]
[1730602523573,0.001664,68196.0,68195.0,0.160638]
[1730602523875,0.001664,68196.0,68195.0,0.159638]
[1730602523987,0.001664,68196.0,68195.0,0.146638]
[1730602524231,0.001664,68196.0,68195.0,0.160638]
[1730602524674,0.001664,68196.0,68195.0,0.173638]
[1730602524676,0.001664,68196.0,68195.0,0.160638]
[1730602524885,0.001664,68196.0,68195.0,0.173638]
[1730602525308,0.002,68193.0,68192.0,0.146644]
[1730602525526,0.002,68194.0,68192.0,0.14579704]
[1730602525785,0.002,68194.0,68193.0,0.29243904]
[1730602526028,0.002,68194.0,68191.0,0.146646]
[1730602526253,0.002,68194.0,68191.0,0.14579704]
[1730602526254,0.146644,68193.0,68191.0,0.14579704]
[1730602526480,0.002,68194.0,68192.0,0.146643]
[1730602526707,0.002,68194.0,68193.0,0.146642]
[1730602527167,0.002,68194.0,68191.0,0.14579704]
[1730602527168,0.002,68189.0,68188.0,0.146653]
[1730602527400,0.01501312,68196.0,68195.0,0.146638]
[1730602527620,0.001664,68196.0,68195.0,0.146638]
[1730602528074,0.001664,68196.0,68193.0,0.013]
[1730602528345,0.002,68192.0,68189.0,0.14579704]
[1730602528588,0.002,68192.0,68156.0,0.293441]
[1730602528589,0.148644,68192.0,68191.0,0.014]
[1730602528823,0.16699871,68192.0,68191.0,0.014]
[1730602529042,0.293298,68190.0,68179.0,0.293343]
[1730602529259,0.293298,68190.0,68168.0,0.22058661]
[1730602529260,0.146649,68190.0,68189.0,0.22058661]
[1730602529482,0.146651,68189.0,68183.0,0.146662]
[1730602529746,0.005,68184.0,68168.0,0.22058661]
[1730602529959,0.005,68184.0,68182.0,0.22058661]
[1730602529960,0.146665,68183.0,68182.0,0.22058661]
[1730602530176,0.005,68184.0,68179.0,0.14667]
[1730602530395,0.005,68184.0,68175.0,0.51394461]
[1730602530396,0.01335893,68185.0,68175.0,0.22058661]
[1730602530653,0.005,68179.0,68162.0,0.293416]
[1730602530870,0.0300343,68178.0,68172.0,0.22058661]
[1730602531081,0.0300343,68178.0,68166.0,0.293398]
[1730602531082,0.01335893,68177.0,68173.0,0.146684]
[1730602531298,0.01335893,68176.0,68170.0,0.22058661]
[1730602531523,0.007,68179.0,68171.0,0.293379]
[1730602531757,0.1876,68180.0,68179.0,0.146672]
[1730602531977,0.20096369,68180.0,68179.0,0.146672]
[1730602532702,0.007,68188.0,68179.0,0.14579704]
[1730602532922,0.1876,68191.0,68185.0,0.146659]
[1730602532923,0.005,68186.0,68185.0,0.146659]
[1730602533380,0.005,68188.0,68183.0,0.293328]
[1730602533600,0.01336994,68190.0,68189.0,0.146651]
[1730602533814,0.01336994,68190.0,68184.0,0.14579704]
[1730602533815,0.01336994,68190.0,68186.0,0.146656]
[1730602534039,0.002,68185.0,68184.0,0.146661]
[1730602534481,0.1876,68191.0,68190.0,0.146649]
[1730602534708,0.1926,68191.0,68184.0,0.14579704]
[1730602534912,0.003,68188.0,68186.0,0.293315]
[1730602535126,0.003,68188.0,68187.0,0.29245204]
[1730602535792,0.003,68188.0,68185.0,0.294319]
[1730602535793,0.002,68186.0,68185.0,0.001]
[1730602536075,0.002,68186.0,68183.0,0.001]
[1730602536076,0.148661,68184.0,68183.0,0.001]
[1730602536329,0.18350876,68184.0,68183.0,0.001]
[1730602536513,0.002,68183.0,68180.0,0.146669]
[1730602536739,0.01340298,68182.0,68180.0,0.146669]
[1730602536955,0.01340298,68181.0,68179.0,0.146671]
[1730602537177,0.002,68183.0,68182.0,0.146666]
[1730602537460,0.01340789,68183.0,68182.0,0.29246304]
[1730602537671,0.01341105,68188.0,68182.0,0.14579704]
[1730602537889,0.01341108,68187.0,68183.0,0.14579704]
[1730602538107,0.002,68189.0,68185.0,0.001]
[1730602538108,0.01441108,68186.0,68185.0,0.001]
[1730602538320,0.01641108,68186.0,68185.0,0.147659]
[1730602538757,0.01541108,68186.0,68185.0,0.146659]
[1730602538982,0.01341108,68186.0,68185.0,0.146659]
[1730602539435,0.002,68190.0,68188.0,0.146653]
[1730602539643,0.01341213,68189.0,68188.0,0.146653]
[1730602539948,0.01341213,68189.0,68188.0,0.39245004]
[1730602540161,0.001664,68196.0,68195.0,0.146638]
[1730602540375,0.01507881,68196.0,68195.0,0.29243504]
[1730602541744,0.01707881,68196.0,68195.0,0.013]
[1730602541977,0.01707881,68196.0,68179.0,0.1]
[1730602541978,0.293281,68194.0,68187.0,0.22058661]